bitfinex/quotes_ETHUSD_20250424
["timestamp","ask_amount","ask_price","bid_price","bid_amount"]
[1745508706911,10.8768439,1765.9,1765.5,5.66390112]
[1745508707413,5.214,1765.9,1765.6,5.66352747]
[1745508707920,5.214,1765.9,1765.6,5.66378917]
[1745508708126,5.214,1765.9,1765.7,5.66346337]
[1745508708724,5.214,1765.9,1765.8,5.66315551]
[1745508709040,5.214,1765.9,1765.6,5.66367422]
[1745508709534,10.87698566,1765.9,1765.5,6.86102651]
[1745508710129,16.54010105,1765.9,1765.5,6.86102651]
[1745508710445,10.87698566,1765.9,1765.5,6.86095876]
[1745508710645,10.87698566,1765.9,1765.5,12.52488218]
[1745508710948,10.87698566,1765.9,1765.5,12.52482298]
[1745508711249,5.214,1765.9,1765.6,5.66357718]
[1745508711441,5.214,1765.9,1765.5,6.86092104]
[1745508711767,5.214,1765.9,1765.8,5.66315551]
[1745508712617,5.66200904,1766.2,1765.7,11.32658679]
[1745508712618,8.6623604,1766.1,1765.7,11.32658679]
[1745508712812,8.6623604,1766.1,1765.5,1.19703507]
[1745508712813,8.66231471,1766.1,1765.6,5.66363599]
[1745508713143,3.0,1766.1,1765.4,6.48997465]
[1745508713441,11.32670807,1765.8,1765.4,6.48997465]
[1745508713610,16.53870807,1765.8,1765.4,6.48997465]
[1745508714010,5.212,1765.8,1765.4,6.48987786]
[1745508714324,5.212,1765.8,1765.6,5.6636951]
[1745508714945,5.212,1765.8,1765.5,5.66399207]
[1745508715429,10.87516634,1765.8,1765.4,12.80314691]
[1745508715645,5.212,1765.8,1765.4,7.13879995]
[1745508715837,5.212,1765.8,1765.5,5.66411718]
[1745508716034,4.21419782,1766.2,1765.8,5.66292747]
[1745508716238,9.876269,1766.2,1765.7,5.66323448]
[1745508716438,15.53842858,1766.2,1765.7,11.32649281]
[1745508716638,5.6622226,1766.1,1765.7,11.32649281]
[1745508716840,5.6622226,1766.1,1765.7,5.66323448]
[1745508717763,5.66298209,1765.9,1765.5,5.66393628]
[1745508718058,5.6630271,1765.9,1765.5,5.66389544]
[1745508718428,6.42444978,1766.0,1765.6,5.66377278]
[1745508718659,7.73740544,1766.1,1765.7,5.66322597]
[1745508718860,14.62819835,1766.2,1765.8,5.66313505]
[1745508719168,5.9662,1766.2,1766.0,5.66240879]
[1745508719349,5.9662,1766.2,1765.9,5.66268642]
[1745508720169,5.9662,1766.2,1765.9,11.32530207]
[1745508720462,5.212,1766.2,1766.1,5.66219353]
[1745508720958,5.212,1766.5,1766.3,5.66155239]
[1745508721122,5.212,1766.5,1766.3,5.66138961]
[1745508721322,5.212,1766.5,1766.4,5.66123188]
[1745508721546,5.212,1766.5,1766.2,0.7775]
[1745508721749,5.7332,1766.5,1766.0,0.807]
[1745508721953,5.6616806,1766.3,1765.9,5.66264956]
[1745508722160,6.42206465,1766.4,1765.9,5.66264333]
[1745508722341,12.08358772,1766.4,1766.0,5.66234596]
[1745508722529,6.42206465,1766.4,1766.1,0.52614858]
[1745508722853,5.66146475,1766.4,1766.0,5.66236511]
[1745508723068,5.66146475,1766.4,1765.9,5.66278576]
[1745508723069,0.8213,1766.2,1765.8,0.807]
[1745508723275,10.87432244,1766.1,1765.7,5.66346736]
[1745508723447,5.212,1766.1,1765.8,5.66303859]
[1745508723957,5.212,1766.1,1765.9,0.52667519]
[1745508724164,0.8213,1766.2,1765.9,6.1893134]
[1745508724364,5.212,1766.3,1766.0,5.66228942]
[1745508724579,10.87372438,1766.3,1765.9,5.66269751]
[1745508724756,18.56657613,1766.3,1765.9,5.66269751]
[1745508725083,5.66231932,1766.1,1765.8,0.08908783]
[1745508725293,5.66207566,1766.2,1765.8,0.08908783]
[1745508725448,5.66207566,1766.2,1765.9,0.526748]
[1745508725890,5.66192284,1766.2,1765.9,0.526748]
[1745508726089,6.48962876,1766.2,1765.8,5.75200555]
[1745508726571,12.15174495,1766.2,1765.8,0.08908783]
[1745508726752,6.48962876,1766.2,1765.8,5.75221482]
[1745508726953,6.48962876,1766.2,1765.8,5.75210914]
[1745508727256,6.48962876,1766.2,1765.9,0.52688826]
[1745508727547,6.43541415,1766.0,1765.9,0.52688826]
[1745508727751,5.66283481,1765.9,1765.8,0.08908783]
[1745508727974,5.212,1765.9,1765.8,0.08908783]
[1745508728582,5.212,1765.9,1765.8,5.75224334]
[1745508729086,5.212,1765.9,1765.8,0.61610289]
[1745508729283,10.87483481,1765.9,1765.8,0.61610289]
[1745508729452,5.212,1765.9,1765.8,0.61610289]
[1745508730067,10.87483481,1765.9,1765.8,0.61610289]
[1745508730253,5.212,1765.9,1765.8,0.61610289]
[1745508730454,6.37676332,1765.9,1765.8,0.61610289]
[1745508730704,6.37676332,1765.9,1765.8,0.08908783]
[1745508731448,6.37676332,1765.9,1765.8,0.6167157]
[1745508732235,12.03959813,1765.9,1765.8,0.08908783]
[1745508732836,12.86469813,1765.9,1765.8,0.08908783]
[1745508733136,15.86469813,1765.9,1765.8,0.08908783]
[1745508734140,5.66495493,1765.3,1764.9,5.66600843]
[1745508734340,5.66522383,1765.2,1765.0,0.52850091]
[1745508734554,9.48938045,1765.6,1765.1,5.6651091]
[1745508734711,10.87631734,1765.5,1765.1,6.4745091]
[1745508735057,10.87631734,1765.5,1765.2,0.52850091]
[1745508735255,5.212,1765.5,1765.2,6.19341071]
[1745508735410,10.87613168,1765.5,1765.2,0.52850091]
[1745508735613,10.87613168,1765.5,1765.1,7.74136717]
[1745508735843,5.66485889,1765.3,1764.9,1.9124244]
[1745508736047,5.66485889,1765.3,1764.9,7.57832399]
[1745508736353,5.66540139,1765.1,1765.0,0.52770358]
[1745508736568,10.87740139,1765.1,1764.7,6.44571213]
[1745508736915,5.66581993,1765.0,1764.7,0.7792]
[1745508737150,11.33179911,1765.0,1764.8,0.52759448]
[1745508737451,9.4648434,1764.9,1764.8,0.52759448]
[1745508737681,10.01494932,1764.9,1764.8,0.52759448]
[1745508737955,10.80754932,1764.9,1764.8,0.52759448]
[1745508738111,5.66699594,1764.7,1764.2,5.66809555]
[1745508738311,3.0,1764.8,1764.5,5.6673115]
[1745508738550,8.213,1764.8,1764.6,0.56673115]
[1745508738750,5.66684922,1764.7,1764.4,0.7619]
[1745508739048,13.87956111,1764.8,1764.4,0.7619]
[1745508739221,16.54618896,1764.8,1764.4,0.7619]
[1745508739551,5.66697553,1764.7,1764.4,0.7619]
[1745508739717,10.87950359,1764.8,1764.4,6.4293875]
[1745508739915,10.87950359,1764.8,1764.4,7.63910653]
[1745508740252,10.87950359,1764.8,1764.4,7.63916468]
[1745508740636,5.66671899,1764.7,1764.4,1.97161903]
[1745508741147,10.87956931,1764.8,1764.4,1.97161903]
[1745508741357,5.66701931,1764.6,1764.2,6.46100275]
[1745508741735,5.66701931,1764.6,1764.2,6.46101012]
[1745508741941,5.66701931,1764.6,1764.2,6.46100245]
[1745508742111,5.66737839,1764.5,1764.2,0.7929]
[1745508742316,5.66684777,1764.7,1764.2,1.43902872]
[1745508742622,8.213,1764.8,1764.3,5.66777992]
[1745508742825,11.64854541,1765.2,1764.8,5.66626078]
[1745508743023,6.43654541,1765.2,1764.8,5.66626078]
[1745508743372,5.212,1765.2,1765.0,5.6655096]
[1745508743517,5.212,1765.2,1764.9,5.66593094]
[1745508743712,5.212,1765.2,1764.9,6.88240369]
[1745508743948,5.212,1765.2,1764.9,1.21647275]
[1745508743949,10.87717575,1765.2,1764.9,1.21647275]
[1745508744147,5.212,1765.2,1764.8,0.8326]
[1745508744458,5.66597976,1765.0,1764.6,0.7778]
[1745508744659,16.54401527,1765.0,1764.6,0.7778]
[1745508744868,10.87797976,1765.0,1764.6,6.44470929]
[1745508745171,17.7481,1765.3,1764.6,1.98898375]
[1745508745336,5.212,1765.2,1765.0,6.487815]
[1745508745537,5.212,1765.2,1765.0,0.8221]
[1745508746249,5.212,1765.2,1765.1,5.66540139]
[1745508746632,5.212,1765.2,1765.0,6.48778802]
[1745508746828,5.212,1765.2,1765.1,5.66540139]
[1745508747264,5.212,1765.4,1765.2,11.3296792]
[1745508747471,5.212,1765.6,1765.3,5.66475953]
[1745508747639,5.66364634,1765.7,1765.3,5.66475953]
[1745508747847,5.212,1765.6,1765.3,5.66475953]
[1745508748259,5.212,1765.6,1765.3,5.66455065]
[1745508748440,10.87580034,1765.6,1765.2,5.66485339]
[1745508748642,5.66412002,1765.5,1765.3,1.13294459]
[1745508749059,5.66443865,1765.4,1765.3,1.13294459]
[1745508749369,16.54000606,1765.6,1765.1,5.66519888]
[1745508749595,5.66414164,1765.5,1765.1,5.66519888]
[1745508749755,5.66414164,1765.5,1765.0,6.48778869]
[1745508749756,5.66463634,1765.4,1765.0,6.48778869]
[1745508749952,11.32933915,1765.4,1765.0,7.24973646]
[1745508750156,5.66479286,1765.3,1765.0,1.58404777]
[1745508750472,0.7805,1765.4,1764.7,5.6665271]
[1745508750677,0.7805,1765.4,1764.8,1.32620135]
[1745508751083,5.66492556,1765.3,1764.9,5.66603988]
[1745508751378,11.32993266,1765.3,1764.9,5.66603988]
[1745508751678,5.66509494,1765.2,1764.8,0.8002]
[1745508751883,5.66509494,1765.2,1764.8,7.11322467]
[1745508752074,11.33046443,1765.2,1764.8,7.11322467]
[1745508752377,5.66509494,1765.2,1764.8,7.11309617]
[1745508752751,5.66494762,1765.3,1764.8,7.11309617]
[1745508752975,5.66494762,1765.3,1764.9,5.66593765]
[1745508753145,5.66509143,1765.2,1764.9,5.66593765]
[1745508753481,5.66494762,1765.3,1764.9,5.66592263]
[1745508753677,6.87595318,1765.3,1764.8,7.11300684]
[1745508753896,6.87597542,1765.3,1764.9,5.66602676]
[1745508754365,11.32998796,1765.3,1764.9,5.66602676]
[1745508754569,5.66496951,1765.3,1764.9,5.66602676]
[1745508755383,5.66508125,1765.2,1764.8,7.11300684]
[1745508755545,5.66540525,1765.1,1764.8,7.11300684]
[1745508755744,5.66508125,1765.2,1764.8,12.77917644]
[1745508756095,11.32991823,1765.3,1764.9,5.66598161]
[1745508756388,11.32991823,1765.3,1764.8,7.11300684]
[1745508756389,5.66513092,1765.2,1764.8,7.11300684]
[1745508756556,5.66513092,1765.2,1764.8,7.11300395]
[1745508757981,5.66513092,1765.2,1764.8,6.77685095]
[1745508758279,5.66513092,1765.2,1764.8,6.13018177]
[1745508758479,5.66490498,1765.3,1764.9,5.66574833]
[1745508759112,6.43569003,1765.6,1765.2,5.66487095]
[1745508759391,17.31174727,1765.6,1765.2,5.66487095]
[1745508759892,5.66448235,1765.4,1765.1,5.66527673]
[1745508760192,5.66448235,1765.4,1765.0,5.6655947]
[1745508760350,5.66489632,1765.3,1764.9,5.66587558]
[1745508760550,5.66489632,1765.3,1764.9,5.66581458]
[1745508760770,5.66448235,1765.4,1765.0,5.66557503]
[1745508760988,5.66476707,1765.3,1765.0,0.8191]
[1745508761290,11.329154,1765.4,1765.0,0.8191]
[1745508761447,5.66486224,1765.3,1765.0,0.8191]
[1745508761758,5.66486224,1765.3,1765.1,0.52813197]
[1745508761958,16.5411696,1765.4,1765.1,0.52813197]
[1745508762192,16.5411696,1765.4,1765.0,6.4847407]
[1745508762345,10.87648235,1765.4,1765.0,0.8191]
[1745508762543,5.66549242,1765.1,1764.8,0.7738]
[1745508762778,5.66517724,1765.2,1764.8,6.4401374]
[1745508762957,5.66517724,1765.2,1764.9,0.5285483]
[1745508763389,5.95202019,1765.4,1765.0,5.66543572]
[1745508763552,17.28128825,1765.4,1765.0,5.66543572]
[1745508763742,5.66478747,1765.3,1765.0,5.66543572]
[1745508764143,5.66478747,1765.3,1764.8,12.10621954]
[1745508764462,5.66520927,1765.2,1764.8,7.65060256]
[1745508764652,5.66520927,1765.2,1764.8,13.31673952]
[1745508764985,11.32981131,1765.3,1764.9,6.1944239]
[1745508765187,5.66478747,1765.3,1764.9,6.1944239]
[1745508765484,5.66526291,1765.2,1765.0,0.52857254]
[1745508765688,5.66493016,1765.3,1765.0,0.52857254]
[1745508765852,11.32991993,1765.3,1765.0,0.52857254]
[1745508766288,5.66493016,1765.3,1765.0,0.52857254]
[1745508766455,5.66493016,1765.3,1765.0,6.19428716]
[1745508766654,5.66508201,1765.2,1765.0,0.52857254]
[1745508766856,5.66493016,1765.3,1765.0,0.52857254]
[1745508767765,11.32992913,1765.3,1764.9,5.66582528]
[1745508768388,5.66509873,1765.2,1765.0,0.52884006]
[1745508768590,6.53116241,1765.3,1765.0,6.1945219]
[1745508768892,5.212,1765.4,1765.2,6.45028221]
[1745508769195,5.66393603,1765.6,1765.2,6.45028221]
[1745508769368,11.65203518,1765.7,1765.3,5.66469411]
[1745508769567,5.66331384,1765.8,1765.4,5.66417694]
[1745508769766,10.87331384,1765.8,1765.3,5.66463132]
[1745508769953,5.66360289,1765.7,1765.3,11.32920666]
[1745508770154,10.87331384,1765.8,1765.4,5.66441526]
[1745508770486,5.66331384,1765.8,1765.4,5.66441526]
[1745508770703,5.66350748,1765.7,1765.3,1.33261622]
[1745508770850,5.21,1765.8,1765.2,0.7854]
[1745508771193,5.21,1765.8,1765.3,0.58532974]
[1745508771354,6.49574177,1765.9,1765.4,0.7779]
[1745508771554,10.87194177,1765.9,1765.4,0.7779]
[1745508771992,10.87194177,1765.9,1765.5,0.52869491]
[1745508772198,0.8073,1766.3,1765.6,0.85853101]
[1745508772355,11.67803273,1766.3,1765.7,0.52869491]
[1745508772556,10.87056416,1766.3,1765.9,0.8019]
[1745508772767,5.209,1766.3,1765.9,0.8019]
[1745508772969,0.8073,1766.7,1766.1,6.46391011]
[1745508773204,8.81377521,1766.7,1766.2,0.58530788]
[1745508773359,5.66105634,1766.5,1766.2,0.52869491]
[1745508773563,5.66059096,1766.6,1766.3,0.52869491]
[1745508773897,11.3214443,1766.6,1766.1,0.8019]
[1745508774195,8.00640217,1766.7,1766.1,0.85851017]
[1745508774363,2.34604675,1766.7,1766.1,0.8019]
[1745508774564,5.66059102,1766.6,1766.2,0.52643268]
[1745508774766,8.00651445,1766.7,1766.2,0.52643268]
[1745508775165,8.00651445,1766.7,1766.1,7.110423]
[1745508775365,13.66707363,1766.7,1766.1,7.110423]
[1745508775698,13.6670438,1766.7,1766.1,7.110423]
[1745508775897,2.34604675,1766.7,1766.1,7.110423]
[1745508776097,8.0064016,1766.7,1766.2,6.42932883]
[1745508776286,8.0064016,1766.7,1766.2,0.7110423]
[1745508777000,28.66470079,1766.8,1766.2,6.3728852]
[1745508777300,27.86210079,1766.8,1766.4,0.7704]
[1745508779195,11.31950712,1766.9,1766.4,6.43143928]
[1745508779502,5.65962986,1766.9,1766.4,6.43143928]
[1745508779698,5.65995644,1766.8,1766.4,6.43143928]
[1745508779901,5.65995644,1766.8,1766.5,0.64314393]
[1745508780204,11.6756869,1767.0,1766.6,5.66053881]
[1745508780500,5.208,1767.0,1766.7,0.8056]
[1745508780707,10.86732642,1767.0,1766.7,0.8056]
[1745508781206,5.65982714,1766.9,1766.7,0.8056]
[1745508781705,10.86732642,1767.0,1766.7,0.8056]
[1745508782021,5.208,1767.0,1766.7,0.8056]
[1745508782169,10.86547159,1767.3,1766.9,5.65949554]
[1745508782364,5.207,1767.3,1767.0,0.56594955]
[1745508782570,5.207,1767.3,1767.0,0.7897]
[1745508782880,5.65661739,1767.9,1767.0,0.7897]
[1745508782881,5.6570744,1767.7,1767.3,5.65819031]
[1745508783202,5.9965,1767.8,1767.4,0.7897]
[1745508783404,5.65714047,1767.7,1767.4,0.7897]
[1745508783789,10.86394621,1767.8,1767.4,0.7897]
[1745508783968,5.207,1767.8,1767.5,5.65770757]
[1745508784168,5.65623779,1768.0,1767.6,0.05656718]
[1745508784371,7.01994101,1768.1,1767.4,2.00030055]
[1745508784603,5.65753128,1767.6,1767.4,0.7897]
[1745508785213,5.65712954,1767.7,1767.4,0.7897]
[1745508785416,5.65718366,1767.7,1767.4,0.7897]
[1745508785709,5.65706638,1767.8,1767.4,0.7897]
[1745508786011,11.31406793,1767.8,1767.4,0.7897]
[1745508786170,5.65708839,1767.7,1767.4,0.7897]
[1745508786718,5.6568963,1767.8,1767.4,0.7897]
[1745508787009,5.65654853,1767.9,1767.4,6.44757837]
[1745508787169,10.86199685,1768.1,1767.5,6.35901294]
[1745508787369,10.86205123,1768.1,1767.6,6.4731463]
[1745508787607,5.656112,1768.0,1767.7,0.05656134]
[1745508787805,5.656112,1768.0,1767.6,0.8158]
[1745508788111,5.65684533,1767.8,1767.6,0.8158]
[1745508788307,5.65658819,1767.9,1767.6,0.8158]
[1745508788507,5.65658819,1767.9,1767.6,1.52761232]
[1745508788709,5.65623577,1768.0,1767.6,7.18494936]
[1745508789069,10.86191207,1768.1,1767.6,7.18477537]
[1745508789475,10.86191207,1768.1,1767.7,5.65704059]
[1745508789673,10.86191207,1768.1,1767.6,7.18477537]
[1745508789674,5.65591207,1768.1,1767.6,1.52761232]
[1745508789895,10.85804418,1768.7,1767.9,5.65619212]
[1745508790094,5.65428894,1768.6,1768.2,5.65526687]
[1745508790293,10.85804418,1768.7,1768.1,5.65562151]
[1745508790294,5.204,1768.7,1768.3,0.87394155]
[1745508790638,5.6543088,1768.6,1768.3,0.8174]
[1745508790919,5.65452693,1768.5,1768.3,0.8174]
[1745508791616,5.65394128,1768.7,1768.3,6.47239737]
[1745508791907,0.7775,1768.9,1768.4,6.30197066]
[1745508791908,5.65338462,1768.9,1768.4,6.30197066]
[1745508792116,5.653587,1768.8,1768.6,0.8174]
[1745508792411,5.65420607,1768.6,1768.4,1.46463974]
[1745508792610,5.65387007,1768.7,1768.4,0.8174]
[1745508792975,11.30803046,1768.7,1768.4,0.8174]
[1745508793202,5.65387007,1768.7,1768.4,0.8174]
[1745508793397,5.6542108,1768.6,1768.4,0.8174]
[1745508794211,11.30871085,1768.6,1768.4,0.8174]
[1745508794412,5.6542108,1768.6,1768.4,0.8174]
[1745508794819,5.65330604,1768.9,1768.4,6.47204111]
[1745508794820,5.65341297,1768.9,1768.4,6.47204111]
[1745508795028,5.65326281,1768.9,1768.5,0.64720411]
[1745508795231,11.30675408,1768.9,1768.5,0.64720411]
[1745508795448,5.65404057,1768.7,1768.4,0.8174]
[1745508795604,5.65355243,1768.8,1768.4,0.8174]
[1745508795786,30.83208657,1769.0,1768.4,6.47203987]
[1745508795986,5.65334097,1768.9,1768.5,5.65448626]
[1745508796392,13.8560989,1769.0,1768.5,5.65430453]
[1745508796603,19.50931943,1769.0,1768.6,0.56543045]
[1745508796927,5.65323181,1768.9,1768.6,0.56543045]
[1745508797295,10.8560989,1769.0,1768.7,0.7602]
[1745508797628,5.65327367,1768.9,1768.7,0.7602]
[1745508797800,5.65355042,1768.8,1768.7,0.7602]
[1745508797992,5.65387007,1768.7,1768.3,0.7602]
[1745508798192,5.65441329,1768.6,1768.3,0.7602]
[1745508798393,5.65373193,1768.8,1768.4,5.65460727]
[1745508798712,5.65389204,1768.7,1768.3,6.41523363]
[1745508798936,5.65389204,1768.7,1768.3,0.7602]
[1745508799406,5.65389204,1768.7,1768.3,6.41531105]
[1745508799604,5.65379678,1768.8,1768.4,0.64153111]
[1745508800132,5.65337226,1768.9,1768.5,5.6544014]
[1745508800299,10.85405872,1769.0,1768.6,6.43470688]
[1745508800702,5.201,1769.0,1768.7,5.65375654]
[1745508800901,5.65243209,1769.2,1768.8,6.21879699]
[1745508801101,5.65243209,1769.2,1768.9,0.7806]
[1745508801341,3.0,1769.3,1768.9,0.7806]
[1745508801513,5.65252283,1769.2,1768.9,0.7806]
[1745508801905,5.65269948,1769.1,1768.9,0.7806]
[1745508802107,5.65252283,1769.2,1768.9,0.7806]
[1745508802311,5.65252283,1769.2,1768.9,1.42401415]
[1745508802731,5.65227302,1769.2,1768.9,1.42401415]
[1745508802929,5.65227302,1769.2,1768.9,0.7806]
[1745508803144,0.8102,1769.4,1768.9,0.7806]
[1745508803440,10.84947215,1769.5,1769.0,0.05652136]
[1745508803611,5.6518102,1769.4,1769.0,5.652813]
[1745508804127,5.65210925,1769.3,1768.9,0.7806]
[1745508804432,5.65210925,1769.3,1768.9,1.42399819]
[1745508804614,5.65239045,1769.2,1768.9,1.42399819]
[1745508805017,5.65177147,1769.4,1769.0,5.65289064]
[1745508805206,5.198,1769.5,1769.3,0.8137]
[1745508805551,5.65136397,1769.5,1769.1,6.46615049]
[1745508805837,5.65136397,1769.5,1769.2,0.64661505]
[1745508806539,5.6511549,1769.6,1769.3,5.65193764]
[1745508806738,5.6511549,1769.6,1769.2,6.35518617]
[1745508806940,5.6511549,1769.6,1769.2,6.29867277]
[1745508807236,5.65134122,1769.5,1769.2,0.64661505]
[1745508807616,5.65173196,1769.4,1769.1,0.8137]
[1745508808156,11.30306094,1769.5,1769.1,0.8137]
[1745508808434,5.65164914,1769.4,1769.1,0.8137]
[1745508808645,5.65083233,1769.7,1769.2,0.05651726]
[1745508808853,5.65104375,1769.6,1769.2,5.70859479]
[1745508809049,5.65104375,1769.6,1769.3,0.57085948]
[1745508809214,5.65083233,1769.7,1769.3,6.27913765]
[1745508809423,5.65083233,1769.7,1769.3,6.2226278]
[1745508809628,5.65083233,1769.7,1769.4,0.7509]
[1745508810129,10.84746954,1769.8,1769.4,6.4025182]
[1745508810428,11.30168994,1769.7,1769.5,0.64025182]
[1745508810624,5.65076525,1769.7,1769.4,0.7509]
[1745508810813,11.30169925,1769.7,1769.4,0.7509]
[1745508811043,5.65076525,1769.7,1769.4,0.7509]
[1745508811571,5.197,1769.8,1769.4,6.40237257]
[1745508811854,10.84748384,1769.8,1769.4,6.40237257]
[1745508812053,16.49810537,1769.8,1769.5,0.64023726]
[1745508812254,5.65084252,1769.7,1769.5,0.64023726]
[1745508812455,5.65084252,1769.7,1769.4,0.7509]
[1745508813352,5.197,1769.8,1769.4,6.40252591]
[1745508813554,14.30052015,1769.9,1769.4,6.40252591]
[1745508813555,28.56302108,1770.1,1769.7,0.7837]
[1745508813858,11.59702108,1770.1,1769.7,6.43428326]
[1745508814149,5.195,1770.1,1769.8,6.17081565]
[1745508814357,5.64919283,1770.2,1769.8,7.43696695]
[1745508814520,11.29854682,1770.2,1769.8,7.43696695]
[1745508814849,5.64919283,1770.2,1769.8,1.2661513]
[1745508815057,5.64919283,1770.2,1769.8,6.91646248]
[1745508815252,5.64939965,1770.1,1769.8,1.2661513]
[1745508816855,5.64919283,1770.2,1769.8,6.91635849]
[1745508817169,11.29852,1770.2,1769.9,0.69163585]
[1745508817759,5.64940101,1770.1,1769.9,0.69163585]
[1745508817972,5.64971751,1770.0,1769.7,0.7837]
[1745508818321,5.64971751,1770.0,1769.8,0.52069406]
[1745508818658,5.65003672,1769.9,1769.8,0.52069406]
[1745508819149,5.65035924,1769.8,1769.5,0.8208]
[1745508819555,5.65035924,1769.8,1769.6,0.52113166]
[1745508819855,11.30102454,1769.8,1769.6,0.52113166]
[1745508820058,5.65067525,1769.7,1769.3,7.04346801]
[1745508820232,5.65100002,1769.6,1769.4,0.7043468]
[1745508820557,5.65152537,1769.5,1769.1,6.41028867]
[1745508821156,5.65152537,1769.5,1769.2,0.52171581]
[1745508821844,5.65152537,1769.5,1769.3,0.52171581]
[1745508821845,5.65181285,1769.4,1769.3,0.52171581]
[1745508823127,3.0,1769.8,1769.3,1.34101581]
[1745508823323,5.651,1769.6,1769.3,2.04032169]
[1745508823529,5.651,1769.6,1769.4,0.52171581]
[1745508823530,5.65134414,1769.5,1769.4,0.52171581]
[1745508825443,5.65080934,1769.7,1769.3,6.21714659]
[1745508825672,8.65054158,1769.8,1769.4,0.7819]
[1745508825885,5.9809,1769.9,1769.6,5.65082498]
[1745508826041,10.84420559,1769.9,1769.5,6.17364459]
[1745508826349,10.84420559,1769.9,1769.6,1.13982593]
[1745508826541,5.194,1769.9,1769.6,6.79061677]
[1745508826936,5.64989304,1770.0,1769.7,0.52246147]
[1745508827359,5.65004002,1769.9,1769.7,0.52246147]
[1745508827572,5.64987416,1770.0,1769.8,0.52246147]
[1745508828134,5.65003672,1769.9,1769.8,0.52246147]
[1745508828553,7.78588259,1769.9,1769.8,0.52246147]
[1745508828753,7.78588259,1769.9,1769.5,0.52246147]
[1745508828754,5.65082409,1769.7,1769.5,0.52246147]
[1745508829170,5.65082409,1769.7,1769.6,0.52246147]
[1745508833284,5.65207369,1769.3,1769.0,0.52415535]
[1745508833581,5.65207369,1769.3,1769.1,0.52415535]
[1745508834084,0.7825,1769.2,1768.8,5.65341424]
[1745508834243,6.43480976,1769.2,1768.9,1.09049823]
[1745508834448,11.30432861,1769.3,1768.9,7.54335743]
[1745508834669,5.65234422,1769.2,1768.9,1.89029823]
[1745508834871,9.43427296,1769.4,1769.0,0.52515681]
[1745508835184,9.43427296,1769.4,1769.0,6.1778916]
[1745508835369,6.4336765,1769.6,1769.2,6.45201436]
[1745508836086,0.7825,1769.6,1769.3,0.52515681]
[1745508836251,5.65163332,1769.4,1769.3,0.52515681]
[1745508836782,5.65159315,1769.5,1769.3,0.52515681]
[1745508837084,5.65163332,1769.4,1769.3,0.52515681]
[1745508837242,5.65089395,1769.7,1769.4,0.52515681]
[1745508837450,11.30234642,1769.6,1769.2,6.45178085]
[1745508837649,11.30234642,1769.6,1769.3,0.64517808]
[1745508837650,11.30235529,1769.6,1769.3,0.64517808]
[1745508837879,5.6511148,1769.6,1769.3,0.64517808]
[1745508838378,5.6511148,1769.6,1769.3,6.29712122]
[1745508838679,5.6511148,1769.6,1769.3,0.64517808]
[1745508839055,20.30621707,1769.8,1769.4,5.65162488]
[1745508839260,5.65076959,1769.7,1769.4,0.52490723]
[1745508839466,5.65101419,1769.6,1769.4,0.52490723]
[1745508839668,5.65076959,1769.7,1769.3,5.65187342]
[1745508839873,14.65571049,1769.8,1769.4,6.21679786]
[1745508840089,14.65571049,1769.8,1769.4,6.27330775]
[1745508840388,6.41665816,1770.0,1769.5,7.00168969]
[1745508840553,5.65027588,1769.9,1769.5,7.00168969]
[1745508841248,5.65027588,1769.9,1769.6,0.52450382]
[1745508841549,11.30057128,1769.9,1769.5,6.47718587]
[1745508841792,5.65046191,1769.8,1769.5,2.095491]
[1745508842295,5.6510863,1769.6,1769.4,0.56518734]
[1745508842450,5.65099503,1769.6,1769.3,6.41469936]
[1745508842797,5.65099503,1769.6,1769.3,0.7628]
[1745508843083,5.65135734,1769.5,1769.4,0.52468365]
[1745508843450,11.30296081,1769.5,1769.2,1.0]
[1745508843650,5.65135734,1769.5,1769.2,1.80835956]
[1745508843983,5.65135734,1769.5,1769.3,0.52481355]
[1745508844395,11.30290947,1769.5,1769.3,0.52481355]
[1745508844776,5.65135734,1769.5,1769.2,1.80835956]
[1745508845158,5.65087663,1769.7,1769.2,7.46048735]
[1745508845363,5.9932,1769.8,1769.3,0.74604874]
[1745508845571,5.65124192,1769.6,1769.3,0.74604874]
[1745508845774,5.65121988,1769.6,1769.3,0.74604874]
[1745508845964,5.65131809,1769.5,1769.4,0.52511835]
[1745508846359,5.6518262,1769.4,1769.2,1.0]
[1745508846599,5.65195274,1769.3,1769.2,1.0]
[1745508847457,6.4022262,1769.4,1769.2,1.0]
[1745508847653,5.65147808,1769.5,1769.2,1.0]
[1745508847860,6.88663808,1769.6,1769.2,1.66524892]
[1745508848060,5.65141526,1769.5,1769.2,1.66524892]
[1745508848608,5.65141526,1769.5,1769.3,0.52586509]
[1745508849071,5.65141526,1769.5,1769.2,1.66524892]
[1745508849660,11.30370359,1769.4,1769.2,1.0]
[1745508849855,5.65175933,1769.4,1769.2,1.0]
[1745508850222,5.6479716,1770.6,1769.3,0.8005]
[1745508850390,0.28086621,1770.8,1770.1,0.8005]
[1745508850561,6.07174216,1770.9,1770.2,0.05648361]
[1745508850763,6.07177149,1770.9,1770.4,5.64831869]
[1745508851298,6.40829021,1771.0,1770.5,6.17373889]
[1745508851502,5.6468837,1770.9,1770.5,6.17373889]
[1745508851666,5.6468837,1770.9,1770.5,0.52573633]
[1745508852062,6.40829021,1771.0,1770.6,5.647803]
[1745508852063,6.40827542,1771.0,1770.6,5.647803]
[1745508852275,6.40827542,1771.0,1770.6,6.85531389]
[1745508852575,6.40827542,1771.0,1770.6,7.37804103]
[1745508852791,0.7616,1771.0,1770.6,7.37804103]
[1745508853103,6.40828689,1771.0,1770.6,1.73023803]
[1745508853898,0.7616,1771.0,1770.6,7.37804103]
[1745508855276,0.5,1771.1,1770.6,7.37804103]
[1745508855609,5.69,1771.1,1770.6,7.37804103]
[1745508855794,5.69,1771.1,1770.6,13.65471054]
[1745508855996,5.69,1771.1,1770.6,13.59824397]
[1745508856769,5.69,1771.1,1770.6,16.59824397]
[1745508856770,0.5,1771.1,1770.6,16.59824397]
[1745508857007,0.5,1771.1,1771.0,5.64652738]
[1745508857327,0.5,1771.1,1771.0,7.03078012]
[1745508857486,0.5,1771.1,1771.0,7.08723012]
[1745508857674,0.5,1771.1,1771.0,7.60995726]
[1745508858773,0.5,1771.1,1771.0,7.55350726]
[1745508859310,0.5,1771.1,1771.0,7.03078012]
[1745508859816,0.5,1771.1,1771.0,1.38425274]
[1745508860169,0.5,1771.1,1771.0,7.03078012]
[1745508861486,0.5,1771.1,1771.0,1.38425274]
[1745508862013,0.5,1771.1,1770.9,5.64684454]
[1745508862396,0.5,1771.1,1770.9,5.64663432]
[1745508862591,0.5,1771.1,1771.0,5.64652738]